Cogmind - Beta 13 X1 @@@ ROGUE MODE // 2023.07.05 @ 20:46:09 Player: WayneKnight Result: Destroyed by Y-54 Guardian with Gatling Laser Performance ------------- Evolutions (3) 1500 Regions Visited (7) 1400 Robots Destroyed (96) 480 Value Destroyed (3673) 3673 Prototype IDs (7) 140 Alien Tech Used (0) 0 Bonus (907) 907 TOTAL SCORE: 8100 Bonus ------- High Alert Combat Kills 89 Follower Combat Kills 408 Entered Garrisons 400 Used RIF Installer 500 Friendly Fire -490 Cogmind --------- Core Integrity 0/700 Matter 231/300 Energy 100/100 System Corruption 2% Temperature Cool (6) Movement Walking (120) Location -7/Garrison Parts ------- > --- POWER (1) -------- (None) > --- PROPULSION (4) --- Aluminum Leg Aluminum Leg Aluminum Leg > --- UTILITY (6) ------ Large Storage Unit Advanced Visual Processing Unit Dynamic Insulation System > --- WEAPON (2) ------- Heavy Assault Rifle Flak Gun > --- INVENTORY (15) --- Light Nuclear Core VTOL Module VTOL Module VTOL Module Improved Sensor Array Improved Signal Interpreter Makeshift System Shield System Restoration Module Gauss Cannon Advanced EMP Blaster Greatsword Peak State ------------ > --- POWER ------------ Improved Ion Engine > --- PROPULSION ------- Light Treads Improved Treads Improved Treads Carbon-fiber Leg > --- UTILITY ---------- Large Storage Unit Improved Signal Interpreter Core Analyzer Improved Medium Armor Plating Graphene Brace Hacking Suite > --- WEAPON ----------- Heavy Assault Rifle High-powered Shotgun > --- INVENTORY -------- Aluminum Leg Improved Signal Interpreter Medium Armor Plating Makeshift System Shield Dynamic Insulation System Heavy Assault Rifle Shotgun Gauss Cannon Gauss Cannon Advanced EMP Blaster Improved Grenade Launcher Greatsword [Rating: 41] Favorites ----------- Power Subdweller Power Source Engine Subdweller Power Source Power Core Light Nuclear Core Propulsion Light Treads Treads Light Treads Leg Aluminum Leg Hover Unit Gravmag System Flight Unit VTOL Module Utility Advanced Visual Processing Unit Device Graphene Brace Storage Large Storage Unit Processor Advanced Visual Processing Unit Hackware Hacking Suite Protection Improved Medium Armor Plating Weapon Shotgun Energy Gun Advanced Beam Rifle Ballistic Gun Shotgun Ballistic Cannon Gauss Cannon Launcher Mini Grenade Launcher Slashing Weapon Great Axe Piercing Weapon Makeshift Spear Build | -11 -10 -10 -8 -8 -8 -7 -7 ------- Run | Jun Mat Sub Mat Gar Mat Fac Gar Slots Evolved 6 | . . . 4 . . 2 . Power . | . . . . . . . . Propulsion 2 | . . . 1 . . 1 . Utility 4 | . . . 3 . . 1 . Weapon . | . . . . . . . . Parts Attached 139 | 3 9 11 46 22 5 23 20 Power 9 | . 1 1 3 1 . 1 2 Engine 6 | . 1 1 3 . . 1 . Core 3 | . . . . 1 . . 2 Reactor . | . . . . . . . . Propulsion 39 | 2 . 2 14 6 2 4 9 Treads 23 | 2 . . 13 5 2 1 . Leg 10 | . . 2 1 1 . 2 4 Wheel . | . . . . . . . . Hover 3 | . . . . . . 1 2 Flight 3 | . . . . . . . 3 Utility 31 | . 4 1 10 4 2 10 . Device 8 | . . 1 2 . 1 4 . Storage 3 | . 2 . 1 . . . . Processor 6 | . . . 3 . 1 2 . Hackware 1 | . . . . . . 1 . Protection 13 | . 2 . 4 4 . 3 . Artifact . | . . . . . . . . Weapon 60 | 1 4 7 19 11 1 8 9 Energy Gun 3 | . . . 2 1 . . . Energy Cannon . | . . . . . . . . Ballistic Gun 39 | 1 3 5 14 4 1 6 5 Ballistic Cannon 6 | . . . . 1 . 2 3 Launcher 9 | . 1 2 2 3 . . 1 Special Weapon . | . . . . . . . . Impact Weapon . | . . . . . . . . Slashing Weapon 2 | . . . . 2 . . . Piercing Weapon 1 | . . . 1 . . . . Special Melee Weapon . | . . . . . . . . Unidentified Prototypes 2 | . . 1 1 . . . . Parts Lost 45 | . 1 2 9 12 1 3 17 Power 8 | . 1 1 1 1 1 . 3 Propulsion 16 | . . 1 1 6 . 1 7 Utility 12 | . . . 4 3 . 2 3 Weapon 9 | . . . 3 2 . . 4 Highest Loss Streak 9 | . 1 1 3 6 1 2 9 To Critical Strikes . | . . . . . . . . Average Slot Usage (%) 93 | . 99 96 88 92 98 98 70 Engine 7 | . 14 11 7 1 . 6 . Core 1 | . . . . 6 7 . 3 Treads 18 | . 28 5 22 25 27 23 8 Leg 8 | . . 22 2 . . 5 8 Device 7 | . . 13 9 3 4 5 7 Storage 10 | . 14 14 9 9 9 7 7 Processor 7 | . . . 15 11 9 14 11 Protection 7 | . 13 . 4 16 22 12 3 Ballistic Gun 19 | . 27 27 17 9 9 14 10 Ballistic Cannon 1 | . . . . 5 9 . 2 Naked Turns . | . . . . . . . . Heaviest Build 59 | 11 22 22 44 52 52 59 46 Greatest Support 89 | 40 40 40 65 65 66 89 69 Greatest Overweight (x) 9 | . . 1 4 2 . . 9 Average Overweight (x) . | . . . . . . . . Largest Inventory Capacity 15 | 8 10 10 15 15 15 15 15 Average Capacity 12 | 8 9 10 13 15 15 15 15 Most Carried 15 | 6 10 10 15 15 15 15 15 Average Carried 11 | 6 9 9 11 14 14 14 12 Final Capacity 15 | 8 10 10 15 15 15 15 15 Final Carried 15 | 6 9 10 15 15 15 15 12 Class Distribution -------------------- 72% | Mutant 24% | Scavenger-Mutant Dominant Class ---------------- Mutant | -10/Materials Mutant | -10/Subcaves Mutant | -8/Materials Scavenger-Mutant | -8/Garrison Scavenger-Mutant | -8/Materials Scavenger-Mutant | -7/Factory Mutant | -7/Garrison Resources | -11 -10 -10 -8 -8 -8 -7 -7 ----------- Run | Jun Mat Sub Mat Gar Mat Fac Gar Matter Collected 3789 | 200 341 199 1112 765 156 389 627 Remotely . | . . . . . . . . Salvage Created 3838 | . 364 93 1719 556 102 503 501 Parts 213 | . 32 7 107 10 7 30 20 Haulers Intercepted 1 | . . . 1 . . . . Recyclers Shooed 1 | . . . . . . 1 . Parts Field Recycled . | . . . . . . . . Retrieved Matter . | . . . . . . . . Parts Self-Destructed 8 | . . 8 . . . . . Prevented . | . . . . . . . . Kills | -11 -10 -10 -8 -8 -8 -7 -7 ------- Run | Jun Mat Sub Mat Gar Mat Fac Gar Combat Hostiles Destroyed 107 | . 11 2 37 32 2 9 14 Melee 11 | . . . 6 5 . . . Guns 79 | . 11 2 28 18 1 9 10 Cannons 3 | . . . . 1 1 . 1 AOE 14 | . . . 3 8 . . 3 Classes Destroyed 14 | . 5 2 4 3 . . . Builder 1 | . 1 . . . . . . Hauler 1 | . . . 1 . . . . Recycler 2 | . 1 . 1 . . . . Operator 1 | . . . 1 . . . . Watcher 8 | . 2 . 3 . 1 2 . Swarmer 18 | . 6 1 7 . . . 4 Grunt 36 | . 5 . 17 2 2 4 6 Duelist 2 | . . . . 1 . . 1 Protector 1 | . . . 1 . . . . Sentry 15 | . . 1 9 2 . 2 1 Hunter 3 | . . . 3 . . . . Programmer 6 | . . . . 1 . 3 2 Subdweller 2 | . . 1 1 . . . . Assembled 26 | . . . . 26 . . . Best Kill Streak 8 | . 5 2 7 8 2 3 5 Combat Bots Only 8 | . 5 2 7 8 2 2 5 Max Kills in Single Turn 3 | . 2 1 2 3 1 1 2 Gunslinging 1 | . 1 . . 1 . . 1 Exploded 3 | . . . 2 3 . . 1 Melee 1 | . . . 1 1 . . . Uniques/NPCs Destroyed . | . . . . . . . . Combat | -11 -10 -10 -8 -8 -8 -7 -7 -------- Run | Jun Mat Sub Mat Gar Mat Fac Gar Damage Taken 9303 | . 358 372 2475 2456 250 1004 2388 Core 1330 | . 38 53 187 334 14 66 638 Absorbed by Shields . | . . . . . . . . Redirected to Shielding 26 | . . . 26 . . . . Regen/Repaired (Parts) 259 | . . . 259 . . . . Core Remaining (%) 55 | 100 . 63 . . 2 . . Volleys Fired 336 | . 32 12 96 85 8 43 60 Largest 2 | . 2 2 2 2 2 2 2 Hottest 86 | . 46 48 86 84 71 48 71 Shots Fired 611 | . 63 19 189 139 16 82 103 Gun 536 | . 62 14 187 106 8 78 81 Cannon 58 | . . . . 27 8 4 19 Launcher 17 | . 1 5 2 6 . . 3 Special . | . . . . . . . . Kinetic 559 | . 62 14 170 115 16 82 100 Thermal 35 | . . . 17 18 . . . Explosive 17 | . 1 5 2 6 . . 3 Electromagnetic . | . . . . . . . . Robot Hit Streak 33 | . 9 6 27 33 9 8 12 Robot Miss Streak 7 | . 7 3 5 5 3 5 6 Penetration Max . | . . . . . . . . Secondary Targets 10 | . 1 . 2 5 . . 2 Max Gunslinging Chain 1 | . 1 . 1 1 . . 1 Shots Hit Robots 427 | . 41 8 152 91 12 50 73 Core Hits 246 | . 22 5 86 57 8 29 39 Critical Kills 1 | . . . 1 . . . . Critical Parts Destroyed 1 | . . . . 1 . . . Critical Strikes 13 | . . . 2 5 3 . 3 Burn 3 | . . . 1 2 . . . Destroy 3 | . . . 1 2 . . . Blast 7 | . . . . 1 3 . 3 Melee Attacks 31 | . . . 11 20 . . . Impact . | . . . . . . . . Slashing 20 | . . . . 20 . . . Piercing 11 | . . . 11 . . . . Sneak Attacks . | . . . . . . . . Combat Hostiles . | . . . . . . . . Follow-up Attacks . | . . . . . . . . Damage Inflicted 9550 | . 667 232 3120 2471 262 937 1861 Guns 6732 | . 663 135 2581 1273 124 934 1022 Cannons 856 | . . . . 260 138 . 458 Explosions 1094 | . . 97 212 414 . . 371 Melee 812 | . . . 294 518 . . . Ramming 56 | . 4 . 33 6 . 3 10 Kinetic 6970 | . 663 135 2321 1175 262 934 1480 Thermal 618 | . . . 260 358 . . . Explosive 1094 | . . 97 212 414 . . 371 Electromagnetic . | . . . . . . . . Impact . | . . . . . . . . Slashing 518 | . . . . 518 . . . Piercing 294 | . . . 294 . . . . Highest Corruption 9 | . . . 2 9 9 1 2 Average Corruption 4 | . . . 1 8 9 1 1 Corruption Purged 1 | . . . . . . 1 . Corruption Blocked . | . . . . . . . . Effects 112 | . . . 36 58 11 1 6 Message Errors 23 | . . . 7 12 2 . 2 Matter Fused 25 | . . . 8 12 4 1 . Heat Flow Errors 13 | . . . 5 5 1 . 2 Energy Discharges 14 | . . . 5 9 . . . Parts Rejected 2 | . . . 2 . . . . Parts Fused 1 | . . . 1 . . . . Data Loss (minor) 16 | . . . 3 10 3 . . Data Loss (major) 7 | . . . 3 2 1 . 1 Misfires 5 | . . . 1 3 . . 1 Alerts 4 | . . . 1 3 . . . Weapon Failures 2 | . . . . 2 . . . Overload Shots . | . . . . . . . . Overflow Damage 167 | . . 2 47 79 . . 39 Projectiles 14 | . . . . 5 . . 9 Explosions 53 | . . 2 7 14 . . 30 Melee 100 | . . . 40 60 . . . Knockbacks 9 | . . . . 4 1 . 4 Impact . | . . . . . . . . Kinetic 9 | . . . . 4 1 . 4 Secondary . | . . . . . . . . Self-Inflicted Damage 264 | . . 46 . 52 . . 166 Shots 6 | . . 2 . 1 . . 3 Rammed 12 | . . . 6 3 . 1 2 Targets Rammed 14 | . 1 . 7 3 . 1 2 Kicked . | . . . . . . . . Crushed 2 | . 1 . 1 . . . . Highest Temperature 334 | . 19 . 334 266 202 17 250 Average Temperature 74 | . 8 . 88 77 79 6 39 Received Heat Transfer 2590 | . 87 36 891 685 162 240 489 Siege Activations . | . . . . . . . . Robots Corrupted . | . . . . . . . . Combat Hostiles . | . . . . . . . . Parts Fried . | . . . . . . . . Impact Corruptions . | . . . . . . . . Robots Melted . | . . . . . . . . Combat Hostiles . | . . . . . . . . Parts Melted 1 | . . . . . . . 1 Heat Transferred 1256 | . . . 555 701 . . . Parts Sabotaged . | . . . . . . . . Parts Stolen . | . . . . . . . . Parts Stripped . | . . . . . . . . Power Chain Reactions . | . . . . . . . . Missiles Intercepted . | . . . . . . . . Alert | -11 -10 -10 -8 -8 -8 -7 -7 ------- Run | Jun Mat Sub Mat Gar Mat Fac Gar Peak Influence 1321 | . 149 . 525 1321 708 381 254 Initial 643 | . . . 53 137 643 322 19 Average 287 | . 39 . 243 644 683 160 144 Maximum Alert Level 4 | . . . 2 4 3 1 1 Low Security (%) 44 | 100 100 . 31 6 . 61 56 Level 1 34 | . . . 56 29 . 38 44 Level 2 10 | . . . 12 22 48 . . Level 3 6 | . . . . 21 51 . . Level 4 4 | . . . . 19 . . . Level 5 . | . . . . . . . . High Security . | . . . . . . . . Max Security . | . . . . . . . . Squads Dispatched 12 | . 1 . 8 . . 3 . Investigation 3 | . 1 . 1 . . 1 . Extermination 2 | . . . . . . 2 . Reinforcement 3 | . . . 3 . . . . Assault 1 | . . . 1 . . . . Garrison 3 | . . . 3 . . . . Intercept . | . . . . . . . . Searches Triggered . | . . . . . . . . Construction Impeded 1 | . . . 1 . . . . Haulers Reinforced . | . . . . . . . . Active Scanning Responses . | . . . . . . . . Cargo Convoy Interrupts . | . . . . . . . . Stealth | -11 -10 -10 -8 -8 -8 -7 -7 --------- Run | Jun Mat Sub Mat Gar Mat Fac Gar Distress Signals 3 | . . . 1 1 1 . . Communications Jammed . | . . . . . . . . Distress Signals . | . . . . . . . . Times Spotted 191 | . 18 27 62 40 6 15 23 Peak Tracking Total 11 | . 4 3 7 6 3 5 11 Tactical Retreats 9 | . . 1 3 2 . . 3 Traps | -11 -10 -10 -8 -8 -8 -7 -7 ------- Run | Jun Mat Sub Mat Gar Mat Fac Gar Traps Triggered 12 | . . 5 4 . . 2 1 Indirectly . | . . . . . . . . Trap Hack Attempts . | . . . . . . . . Triggered . | . . . . . . . . Disarmed . | . . . . . . . . Reprogrammed . | . . . . . . . . Reused . | . . . . . . . . Traps Extracted . | . . . . . . . . Installed . | . . . . . . . . Triggered . | . . . . . . . . Machines | -11 -10 -10 -8 -8 -8 -7 -7 ---------- Run | Jun Mat Sub Mat Gar Mat Fac Gar Machines Disabled 3 | . . 1 1 1 . . . Max in Single Turn 1 | . . . 1 1 . . . Garrison Relay 1 | . . . . 1 . . . Machines Repaired . | . . . . . . . . Machines Sabotaged . | . . . . . . . . Overloaded Fab Kills . | . . . . . . . . Hacking | -11 -10 -10 -8 -8 -8 -7 -7 --------- Run | Jun Mat Sub Mat Gar Mat Fac Gar Machines Accessed 31 | . 7 1 13 2 . 7 1 Terminals 23 | . 6 . 9 2 . 5 1 Fabricators 1 | . . . . . . 1 . Repair Stations 2 | . . . 2 . . . . Recycling Units 2 | . 1 . 1 . . . . Scanalyzers . | . . . . . . . . Garrison Access 2 | . . . 1 . . 1 . Total Hacks 98 | . 27 7 43 5 . 15 1 Successful 57 | . 17 7 23 1 . 9 . Failed 41 | . 10 . 20 4 . 6 1 Catastrophic 9 | . 1 . 4 2 . 1 1 Database Lockouts . | . . . . . . . . Manual 46 | . 13 . 26 . . 7 . Terminals 76 | . 24 . 33 5 . 13 1 Fabricators 1 | . . . . . . 1 . Repair Stations 6 | . . . 6 . . . . Recycling Units 6 | . 3 . 3 . . . . Scanalyzers . | . . . . . . . . Garrison Access 2 | . . . 1 . . 1 . Terminal Hacks 35 | . 12 7 11 1 . 4 . Record 7 | . . 7 . . . . . Part Schematic 1 | . . . . . . 1 . Robot Analysis 7 | . 4 . 3 . . . . Prototype ID Bank 3 | . 3 . . . . . . Branch Access Points 1 | . . . . . . 1 . Emergency Access Points 1 | . . . . 1 . . . Terminal Index 2 | . . . 1 . . 1 . Alert Level 3 | . . . 3 . . . . Unreport Threat 5 | . 1 . 3 . . 1 . Locate Traps 2 | . 2 . . . . . . Hauler Manifests 2 | . 1 . 1 . . . . Zone Layout 1 | . 1 . . . . . . Fabricator Hacks 1 | . . . . . . 1 . Build 1 | . . . . . . 1 . Repair Station Hacks 6 | . . . 6 . . . . Scan Component 3 | . . . 3 . . . . Repair 3 | . . . 3 . . . . Recycling Unit Hacks 3 | . 1 . 2 . . . . Report Inventory 2 | . 1 . 1 . . . . Retrieve Components 1 | . . . 1 . . . . Scanalyzer . | . . . . . . . . Garrison Access Hacks 2 | . . . 1 . . 1 . Unlock Access 2 | . . . 1 . . 1 . Unauthorized Hacks 10 | . 4 . 3 . . 3 . Terminals 9 | . 3 . 3 . . 3 . Track 1 | . 1 . . . . . . Botnet 8 | . 2 . 3 . . 3 . Fabricators . | . . . . . . . . Repair Stations . | . . . . . . . . Recycling Units 1 | . 1 . . . . . . Tunnel 1 | . 1 . . . . . . Scanalyzers . | . . . . . . . . Garrison Access . | . . . . . . . . Data Cores Recovered 1 | . . . 1 . . . . Used 1 | . . . 1 . . . . Hacking Detections 25 | . 6 . 10 2 . 6 1 Full Trace Events 5 | . . . 3 2 . . . Feedback Events . | . . . . . . . . Feedback Blocked . | . . . . . . . . Robot Schematics Acquired . | . . . . . . . . Robots Built 3 | . . . . . . 3 . Authchips . | . . . . . . . . Time 134 | . . . . . . 134 . Total Robot Build Rating 12 | . . . . . . 12 . Part Schematics Acquired 1 | . . . . . . 1 . Parts Built . | . . . . . . . . Authchips . | . . . . . . . . Time . | . . . . . . . . Total Part Build Rating . | . . . . . . . . Parts Repaired 3 | . . . 3 . . . . Time 130 | . . . 130 . . . . Parts Recycled . | . . . . . . . . Recycled Matter . | . . . . . . . . Retrieved Matter . | . . . . . . . . Retrieved Components 2 | . . . 2 . . . . Parts Scanalyzed . | . . . . . . . . Part Schematics Acquired . | . . . . . . . . Parts Damaged . | . . . . . . . . Bothacking | -11 -10 -10 -8 -8 -8 -7 -7 ------------ Run | Jun Mat Sub Mat Gar Mat Fac Gar Used RIF Installer 1 | . . . . 1 . . . Robots Hacked . | . . . . . . . . Non-combat . | . . . . . . . . Combat . | . . . . . . . . Robot Hacks Applied . | . . . . . . . . Relay Couplers Released 4 | . . . . 4 . . . Machine Destruction 4 | . . . . 4 . . . Fabnet Peak Effective % . | . . . . . . . . Robots Rewired 7 | . . . . 7 . . . Allies Hacked 1 | . . . . . . . 1 Hacks Repelled . | . . . . . . . . Allies | -11 -10 -10 -8 -8 -8 -7 -7 -------- Run | Jun Mat Sub Mat Gar Mat Fac Gar Total Allies 24 | . . 14 . 7 . 3 . Largest Group 7 | . . 7 5 6 . 3 3 Highest-Rated Group 133 | . . 133 96 109 . 60 60 Highest-Rated Ally 21 | . . 20 20 21 . 20 20 Total Orders . | . . . . . . . . Ally Attacks 106 | . . 45 10 40 . . 11 Total Damage 2030 | . . 667 167 1020 . . 176 Kills 15 | . . 6 3 6 . . . Allies Corrupted . | . . . . . . . . Allies Melted . | . . . . . . . . Intel | -11 -10 -10 -8 -8 -8 -7 -7 ------- Run | Jun Mat Sub Mat Gar Mat Fac Gar Robot Analysis Total 7 | . 4 . 3 . . . . Derelict Logs Recovered 1 | . . 1 . . . . . Drone Launches . | . . . . . . . . Drone Recoveries . | . . . . . . . . Exploration | -11 -10 -10 -8 -8 -8 -7 -7 ------------- Run | Jun Mat Sub Mat Gar Mat Fac Gar Turns Passed 12967 | 7 1698 3789 2925 2044 283 1671 550 Spaces Moved 6222 | 2 665 2120 1268 965 155 846 201 Core 5 | . . . . . . . 5 Treads 4450 | 2 665 459 1258 960 155 846 105 Legs 1752 | . . 1661 10 5 . . 76 Wheels . | . . . . . . . . Hover . | . . . . . . . . Flight 15 | . . . . . . . 15 Fastest Speed 120 | 160 160 120 153 158 160 160 120 Average Speed 165 | 160 160 174 161 164 160 160 160 Slowest Speed 515 | 160 160 190 400 260 160 160 515 Overloaded Moves . | . . . . . . . . Propulsion Burnouts . | . . . . . . . . Robots Hopped . | . . . . . . . . Cave-ins Triggered . | . . . . . . . . Exploration Rate (%) 55 | 2 94 95 94 85 17 24 30 Regions Visited 7 Branch Regions 1 Pre-discovered Areas 2 | . 1 1 . . . . . Known Exits Taken 3 | . . . 1 . 1 1 . Unknown Exits Taken 3 | 1 1 1 . . . . . Scrap Searched 10 | . . 10 . . . . . Spaces Dug 27 | . . 17 . 6 . 4 . Terrain Destroyed 151 | . 12 40 24 38 3 4 30 Melee . | . . . . . . . . Projectile 14 | . . . . 7 3 4 . AOE 137 | . 12 40 24 31 . . 30 Terrain Rammed . | . . . . . . . . Walls Destroyed . | . . . . . . . . Machines Disabled . | . . . . . . . . Actions | -11 -10 -10 -8 -8 -8 -7 -7 --------- Run | Jun Mat Sub Mat Gar Mat Fac Gar Total 8218 | 4 1240 2191 1958 1249 175 1080 321 Wait 1348 | . 510 38 494 119 3 151 33 Move 6214 | 1 664 2119 1267 963 154 845 201 Hop . | . . . . . . . . Pick Up 45 | . 12 5 15 5 1 5 2 Fast Attach 57 | . 2 3 23 10 2 8 9 Attach 25 | . 1 2 7 4 . 3 8 Detach 10 | . . 1 3 1 . 2 3 Swap 57 | 3 6 6 16 8 3 12 3 Drop 52 | . 12 5 19 2 4 10 . Fire 336 | . 32 12 96 85 8 43 60 Melee 31 | . . . 11 20 . . . Ram 1 | . . . . . . . 1 Kick . | . . . . . . . . Crush 13 | . 1 . 7 3 . 1 1 Escape Stasis . | . . . . . . . . Rewire 29 | . . . . 29 . . . Trap . | . . . . . . . . Miscellaneous . | . . . . . . . . Route ------- -11/Junkyard -10/Materials (discovered 5 exits: [*Mat x3] / [*Min] / *Sub) -10/Subcaves (discovered 3 exits: [*Mat] / *Mat / [*Rec]) -8/Materials (discovered 4 exits: *Fac x3 / Gar) -8/Garrison (discovered 3 exits: [*Mat x3]) -8/Materials -7/Factory (discovered 5 exits: *Fac / Sto / Low x2 / Gar) -7/Garrison (discovered 1 exit: [*Fac]) History --------- Turn | Location | Event 6 | -11/Junkyard | Discovered new exit (range 1) 8 | -11/Junkyard | Entered Materials 313 | -10/Materials | Build established: Mutant 393 | -10/Materials | Discovered new exit (range 8) 626 | -10/Materials | Discovered new exit (range 9) 1275 | -10/Materials | Discovered new exit (range 5) 1365 | -10/Materials | Discovered new exit (range 12) 1581 | -10/Materials | Discovered new exit (range 12) 1706 | -10/Materials | Entered Subcaves 1902 | -10/Subcaves | Visited triangular shrine 1934 | -10/Subcaves | Found Prototype Device 1934 | -10/Subcaves | Identified V3-11A's Pendant 1939 | -10/Subcaves | Befriended Subdweller 2033 | -10/Subcaves | Learned Materials stockpile data 2103 | -10/Subcaves | Disturbed a concealed Subdweller 2104 | -10/Subcaves | Befriended Subdweller 2249 | -10/Subcaves | Befriended Subdweller 2249 | -10/Subcaves | Befriended Subdweller 2639 | -10/Subcaves | Learned location of Zion (-7) 2639 | -10/Subcaves | Met a Zionite searching for "candidates" 2801 | -10/Subcaves | Discovered new exit (range 13) 2879 | -10/Subcaves | Befriended Subdweller 2958 | -10/Subcaves | Ambushed by Subdweller buried in earth 2959 | -10/Subcaves | Befriended Subdweller 3115 | -10/Subcaves | Ambushed by Subdweller buried in earth 3119 | -10/Subcaves | Befriended Subdweller 3149 | -10/Subcaves | Befriended Subdweller 3164 | -10/Subcaves | A swath of the cavern ceiling suddenly collapsed 3183 | -10/Subcaves | Discovered new exit (range 10) 3189 | -10/Subcaves | Befriended Subdweller 3262 | -10/Subcaves | Shifting Twisted Machinery released Sub. Beam Cannon 3359 | -10/Subcaves | Befriended Subdweller 3364 | -10/Subcaves | Befriended Subdweller 3395 | -10/Subcaves | Shifting Twisted Machinery released Mak. Spear 3503 | -10/Subcaves | Shifting Twisted Machinery released Sub. Optics 3568 | -10/Subcaves | Shifting Twisted Machinery released Sub. Optics 3581 | -10/Subcaves | Discovered new exit (range 14) 3736 | -10/Subcaves | Visited Clippyterm 3741 | -10/Subcaves | Learned Factory fabricator intel 3741 | -10/Subcaves | Learned Factory stockpile data 4960 | -10/Subcaves | A Subdweller sparked back to life 4960 | -10/Subcaves | A Subdweller sparked back to life 4960 | -10/Subcaves | A Subdweller sparked back to life 4964 | -10/Subcaves | Befriended Subdweller 4964 | -10/Subcaves | Befriended Subdweller 4964 | -10/Subcaves | Befriended Subdweller 5495 | -10/Subcaves | Entered Materials 5495 | -8/Materials | Accompanied by 5 allies 5495 | -8/Materials | Evolved 4 slots: Propulsion x1, Utility x3 5943 | -8/Materials | Build established: Scavenger-Mutant 6107 | -8/Materials | Garrison activated, responded to threat 6220 | -8/Materials | Destroyed 7 combat bots 6586 | -8/Materials | Discovered new exit (range 18) 6589 | -8/Materials | Build established: Mutant 6695 | -8/Materials | First assault squad dispatched 6837 | -8/Materials | Lost 3 parts (1u2w) 7571 | -8/Materials | Discovered new exit (range 4) 7906 | -8/Materials | Discovered new exit (range 9) 8103 | -8/Materials | Repaired Imp. Treads 8142 | -8/Materials | Repaired Arm. Treads 8381 | -8/Materials | Repaired Adv. Beam Rifle 8419 | -8/Materials | Identified exit to Garrison 8420 | -8/Materials | Entered Garrison 8474 | -8/Garrison | Triggered checkpoint 8527 | -8/Garrison | Assembled breached garrison interior 8538 | -8/Garrison | Garrison Relay disabled 8680 | -8/Garrison | Destroyed 8 combat bots 8753 | -8/Garrison | Core integrity fell below 50% 8810 | -8/Garrison | Lost 6 parts (1p3n1u1w) 8841 | -8/Garrison | Core integrity fell below 20% 9265 | -8/Garrison | Discovered new exit (range 11) 9277 | -8/Garrison | Build established: Scavenger-Mutant 9434 | -8/Garrison | Discovered new exit (range 8) 9755 | -8/Garrison | Discovered new exit (range 10) 10110 | -8/Garrison | Installed Relay Interface Framework 10464 | -8/Garrison | Entered Materials 10723 | -8/Materials | Discovered new exit (range 15) 10746 | -8/Materials | Identified exit to Factory 10747 | -8/Materials | Entered Factory 10747 | -7/Factory | Evolved 2 slots: Propulsion x1, Utility x1 10749 | -7/Factory | Loaded intel: 6 fabricator locations 10965 | -7/Factory | Discovered new exit (range 7) 10991 | -7/Factory | Identified exit to Factory 11833 | -7/Factory | Build established: Mutant 12253 | -7/Factory | Fabricated B-48 Gladiator? 12287 | -7/Factory | Identified exit to Storage 12287 | -7/Factory | Identified exit to Lower Caves 12398 | -7/Factory | Identified exit to Garrison 12418 | -7/Factory | Entered Garrison 12418 | -7/Garrison | Accompanied by 3 allies 12450 | -7/Garrison | Triggered checkpoint 12514 | -7/Garrison | Lost 5 parts (1p2n1u1w) 12636 | -7/Garrison | Triggered checkpoint 12681 | -7/Garrison | Core integrity fell below 50% 12719 | -7/Garrison | Core integrity fell below 20% 12735 | -7/Garrison | Lost 9 parts (1p4n2u2w) 12921 | -7/Garrison | Discovered new exit (range 13) 12968 | -7/Garrison | Destroyed by Y-54 Guardian with Gatling Laser Last Messages --------------- 12842_ Acquired Lgt. Nuclear Core. 12861_ System corrupted: FCS attempts to trigger Hvy. Assault Rifle. 12861_ System corrupted: Hvy. Assault Rifle misfires. 12865_ Hvy. Assault Rifle destroyed. 12869_ Slug penetrates Y-54 Guardian. 12872_ Y-54 Guardian Imp. Heat Sink blasted off. 12875_ Y-54 Guardian destroyed. 12879_ Acquired Flak Gun. 12880_ Acquired 51 matter. 12883_ Acquired 6 matter. 12911_ System corrupted: Heat flow error (+140). 12921_ EXIT=FOUND 12943_ System corrupted: Heat flow error (+275). 12953_ Triggered Alarm Trap. 12953_ An alarm sounds. 12955_ Lgt. Nuclear Core destroyed. 12959_ System corrupted: Substantial component data lost. 12961_ C-30 ARC bursts open, deploying its payload. 12961_ P-60 Hacker unfolds itself. 12965_ Carbon-fiber Leg destroyed. Map ----- +----------------------------------------------------+ | ######### ### ######## #????????????????????? | | ^ ! #????????????????????? | | / #????????????????????? | | ^^ ^ [! #????????????????????? | | #### ## ## ###########????????????????????? | | ???# ## ## ###????????????????????????????? | | ???" #????????????????????????????? | | ???" #????????????????????????????? | | ???" #????????????????????????????? | | ???" #????????????????????????????? | | ???# ## ## ###????????????????????????????? | | ???# ## ## #############??????????????????? | | ???# #??????????????????? | | ???# #??????????????????? | | ???# ########## #??????????????????? | | ???+ ##""""###+##????????# #??????????????????? | | ??## ????????# #?????????# #??????????????????? | | ???# ?????????# ??????????# #??????????????????? | | ???# ??????????? ??????????# #????#?????????????? | | ???#???????????? ??????????# +??? #?????????????? | | ???????????????? ??????????# #??? #?????????????? | | ???????????????? ??????????# #??? #?????????????? | | ???????????????????????????# ####+########??????? | | ???????????????????????????# #??????? | | ???????????????# #### ###### #??????? | | ???????????????# Y @ p% ######### < #??????? | | ???????????????# ###### #####+#???????# #??????? | | ??????????????????????????????????????#####??????? | | ?????????????????????????????????????????????????? | | ?????????????????????????????????????????????????? | | ?????????????????????????????????????????????????? | | ?????????????????????????????????????????????????? | | ?????????????????????????????????????????????????? | | ?????????????????????????????????????????????????? | | ?????????????????????????????????????????????????? | | ?????????????????????????????????????????????????? | | ?????????????????????????????????????????????????? | | ?????????????????????????????????????????????????? | | ?????????????????????????????????????????????????? | | ?????????????????????????????????????????????????? | | ?????????????????????????????????????????????????? | | ?????????????????????????????????????????????????? | | ?????????????????????????????????????????????????? | | ?????????????????????????????????????????????????? | | ?????????????????????????????????????????????????? | | ?????????????????????????????????????????????????? | | ?????????????????????????????????????????????????? | | ?????????????????????????????????????????????????? | | ?????????????????????????????????????????????????? | | ?????????????????????????????????????????????????? | +----------------------------------------------------+ Best States ------------- Heat Dissipation 34 Energy Generation 15 Energy Capacity 325 Matter Stores 300 Matter Capacity 300 Sight Range 20 Robot Scan Range 15 Terrain Scan Density 10 ECM Strength 1 EM Shielding 2 Armor Coverage 675 Propulsion Shielding 33 Weapon Shielding 33 Evasion (%) 55 Targeting Accuracy 6 Core Analysis 6 Recoil Reduction 4 Offensive Hacking 10 Item Schematics ----------------- Adv. Hacking Suite | -7/Factory | Hacked Robot Schematics ------------------ None Fabricated ------------ B-48 Gladiator | x3 | -7/Factory | Preloaded Alien Tech Used ----------------- None Achievements -------------- None Challenges ------------ None Game ------ Seed CarbidePhysicsWeb Manual? 0 Play Time 01:17:49 Cumulative 40.2 hours Start 2023.07.05 @ 19:20:19 End 2023.07.05 @ 20:46:09 Sessions 1 Manual Loads 0 Difficulty Rogue Special Mode None Game No. 41 Rogue 41 Adventurer 0 Explorer 0 Win Type - Total 0 Types 0/0/0/0/0/0/0/0/0 Lore% 29 Gallery% 29 Achievement% 51 Wizard Run 0 Options --------- ASCII 1 Keyboard 1 Movement Arrows Keybinds 0 Fullscreen 2 Font 24/Proggy Map View 76x50 Tactical HUD 1 Map Filters NONE Filters NONE Steam 1 RUN: 967a63f3-727d-4646-ae8d-df9ce3bf6e5a